fUSD/lending_fUSD_20240813
["ID","MTS","AMOUNT","RATE_DAILY","PERIOD"]
[334720806,1723507231206,150.0,0.00026546,120]
[334720852,1723507784295,201.42,9.119e-05,2]
[334720858,1723507832301,-586.0,9.999e-05,2]
[334720859,1723507832311,-550.0,0.0001,2]
[334720860,1723507832321,-161.82628608,0.0001,2]
[334720861,1723507832330,-161.82628608,0.00010232,2]
[334720862,1723507832340,-300.0,0.00010331,2]
[334720863,1723507832350,-150.0,0.00010331,2]
[334720864,1723507832359,-300.0,0.00010331,2]
[334720865,1723507832369,-5402.20854078,0.00010332,2]
[334720866,1723507832378,-2836.06303036,0.00010332,2]
[334720867,1723507832388,-6164.95487157,0.00010332,2]
[334720868,1723507832400,-716.18874666,0.00010332,2]
[334720869,1723507832459,-3653.00945732,0.00010332,2]
[334720870,1723507832469,-805.94739166,0.00010332,2]
[334720871,1723507832481,-345.80403217,0.00010332,2]
[334720872,1723507832492,-8751.95111261,0.00010332,2]
[334720873,1723507832501,-3121.02924387,0.00010332,2]
[334720874,1723507832511,-243.25458866,0.00010332,2]
[334720875,1723507832521,-187.9747463,0.00010332,2]
[334720876,1723507832553,-619.14994573,0.00010332,2]
[334720877,1723507832568,-994.86951933,0.00010332,2]
[334720878,1723507832581,-825.54249811,0.00010332,2]
[334720879,1723507832592,-4078.60505396,0.00010332,2]
[334720880,1723507832611,-260.01884099,0.00010332,2]
[334720881,1723507832623,-478.05361148,0.00010332,2]
[334720882,1723507832635,-321.34377558,0.00010332,2]
[334720883,1723507832646,-7717.54947489,0.00010332,2]
[334720884,1723507832655,-419.10841212,0.00010332,2]
[334720885,1723507832671,-834.52634578,0.00010332,2]
[334720890,1723507838386,-1700.0,0.00010332,2]
[334720891,1723507838441,-300.0,0.00010332,2]
[334720892,1723507838548,-247.65429881,0.00010332,2]
[334720893,1723507838558,-1406.13177639,0.00010332,2]
[334720894,1723507838568,-889.38224008,0.00010332,2]
[334720895,1723507838708,-591.98942285,0.00010332,2]
[334721055,1723507840370,-3393.62354785,0.00010332,2]
[334721065,1723507840458,-298.5097,0.00010332,2]
[334721070,1723507840507,-588.2445,0.00010332,2]
[334721077,1723507840562,-1238.25058922,0.00010332,2]
[334721079,1723507840571,-2261.74941078,0.00010332,2]
[334721085,1723507840618,-408.29491154,0.00010332,2]
[334721349,1723507843302,-1205.39764489,0.00010332,2]
[334721350,1723507843312,-1275.64502519,0.00010332,2]
[334721352,1723507843321,-2502.58566001,0.00010332,2]
[334721354,1723507843331,-155.0,0.00010332,2]
[334721356,1723507843340,-921.56338905,0.00010332,2]
[334721358,1723507843349,-600.74422133,0.00010332,2]
[334721360,1723507843358,-520.34844594,0.00010332,2]
[334721362,1723507843369,-1127.78553485,0.00010332,2]
[334721364,1723507843378,-595.07789582,0.00010332,2]
[334721366,1723507843387,-267.36245891,0.00010332,2]
[334721368,1723507843396,-330.1975188,0.00010332,2]
[334721370,1723507843405,-164.37927092,0.00010332,2]
[334721372,1723507843415,-1298.23330788,0.00010332,2]
[334721374,1723507843423,-149.9224775,0.00010332,2]
[334721378,1723507843454,-5.0775225,0.00010332,2]
[334721380,1723507843463,-155.0,0.00010332,2]
[334721382,1723507843472,-336.15926,0.00010332,2]
[334721384,1723507843483,-279.92356222,0.00010332,2]
[334721446,1723507844076,-37.39588203,0.00010332,2]
[334721448,1723507844085,-155.0,0.00010332,2]
[334721450,1723507844094,-155.0,0.00010332,2]
[334721452,1723507844104,-155.0,0.00010332,2]
[334721454,1723507844114,-1139.1217656,0.00010332,2]
[334721455,1723507844123,-2341.8386325,0.00010332,2]
[334721457,1723507844132,-264.49036255,0.00010332,2]
[334721459,1723507844142,-432.47832469,0.00010332,2]
[334721461,1723507844151,-155.0,0.00010332,2]
[334721463,1723507844160,-309.29668231,0.00010332,2]
[334721465,1723507844172,-270.58164358,0.00010332,2]
[334721467,1723507844181,-310.0,0.00010332,2]
[334721469,1723507844190,-164.40260801,0.00010332,2]
[334721470,1723507844200,-155.0,0.00010332,2]
[334721472,1723507844209,-268.76362435,0.00010332,2]
[334721474,1723507844219,-159.56617666,0.00010332,2]
[334721476,1723507844228,-476.94280787,0.00010332,2]
[334721478,1723507844238,-692.79766869,0.00010332,2]
[334721480,1723507844249,-349.15890632,0.00010332,2]
[334721482,1723507844259,-723.413963,0.00010332,2]
[334721484,1723507844268,-719.99287251,0.00010332,2]
[334721486,1723507844277,-202.906155,0.00010332,2]
[334721488,1723507844287,-155.0,0.00010332,2]
[334721490,1723507844297,-433.2544179,0.00010332,2]
[334721492,1723507844308,-60.34366545,0.00010332,2]
[334721494,1723507844318,-1202.30141524,0.00010332,2]
[334721496,1723507844329,-500.0,0.00010332,2]
[334721498,1723507844341,-1395.79927582,0.00010332,2]
[334721500,1723507844352,-306.28930493,0.00010332,2]
[334721502,1723507844363,-74.5292235,0.00010332,2]
[334721693,1723507846384,-291.27257687,0.00010332,2]
[334721695,1723507846393,-155.0,0.00010332,2]
[334721697,1723507846403,-205.93925426,0.00010332,2]
[334721699,1723507846412,-962.44601255,0.00010332,2]
[334721701,1723507846422,-1074.67923523,0.00010332,2]
[334721703,1723507846432,-380.32741541,0.00010332,2]
[334721705,1723507846441,-182.55198646,0.00010332,2]
[334721707,1723507846451,-783.8257086,0.00010573,2]
[334721709,1723507846460,-783.8257086,0.00010573,2]
[334721711,1723507846469,-1949.9079533,0.000108,2]
[334721714,1723507846493,-993.93091893,0.000108,2]
[334721717,1723507846508,-347.83,0.000108,2]
[334721719,1723507846519,-729.12371714,0.000108,2]
[334721721,1723507846530,-774.96581063,0.000108,2]
[334721723,1723507846538,-410.60418937,0.00011,2]
[334721725,1723507846549,-540.45786876,0.00011,2]
[334721727,1723507846558,-250.0,0.00011,2]
[334721729,1723507846568,-198.5,0.00011,2]
[334721731,1723507846577,-1000.0,0.00011078,2]
[334721733,1723507846587,-2930.11333267,0.00011105,2]
[334721735,1723507846598,-8349.39972059,0.00011105,2]
[334721741,1723507846654,-939.883994,0.00011105,2]
[334721743,1723507846665,-1753.85498398,0.00011105,2]
[334721746,1723507846685,-11348.96909676,0.00011105,2]
[334721748,1723507846697,-3937.46359227,0.00011105,2]
[334721750,1723507846707,-640.47731097,0.00011105,2]
[334721752,1723507846718,-1099.09286107,0.00011105,2]
[334721754,1723507846728,-2572.09713893,0.00011185,2]
[334721756,1723507846741,-1128.98875127,0.00011185,2]
[334721758,1723507846753,-292.978315,0.00011185,2]
[334724324,1723508070694,150.0,0.00026477,120]
[334724325,1723508250725,150.0,0.00026151,120]
[334724326,1723508330873,191.34,8.381e-05,2]
[334724327,1723508405975,791.13432577,8.381e-05,2]
[334724328,1723508490852,150.0,0.00026755,120]
[334724329,1723508494506,727.14365559,8.381e-05,2]
[334724330,1723508670724,150.0,0.00026368,120]
[334724335,1723508790709,150.0,0.00026413,120]
[334724363,1723508905571,476.74,9.644e-05,2]
[334724364,1723508945182,189.56,8.219e-05,2]
[334724366,1723508968897,-250.0,9.655e-05,2]
[334724367,1723508968924,-449.53327369,9.655e-05,2]
[334724368,1723509030723,150.0,0.00026114,120]
[334724382,1723509031383,-509.56672631,9.655e-05,2]
[334724385,1723509031392,-940.43327369,9.677e-05,2]
[334724391,1723509031442,-230.14672631,9.677e-05,2]
[334724392,1723509031452,-1079.0,9.774e-05,2]
[334724393,1723509031462,-528.64,9.808e-05,2]
[334724394,1723509031472,-1042.52,9.828e-05,2]
[334724395,1723509031481,-271.68,9.848e-05,2]
[334724396,1723509031491,-800.0,9.85e-05,2]
[334724397,1723509031502,-815.26,9.868e-05,2]
[334724398,1723509031511,-300.0,9.87e-05,2]
[334724399,1723509031520,-23900.0,9.871e-05,2]
[334724400,1723509031530,-150.0,9.922e-05,2]
[334724401,1723509031539,-8539.35,9.923e-05,2]
[334724402,1723509031548,-10818.69,9.923e-05,2]
[334724403,1723509031558,-2463.28,9.946e-05,2]
[334724404,1723509031568,-550.0,0.0001,2]
[334724405,1723509031578,-918.72,0.0001002,2]
[334724406,1723509031587,-161.82628605,0.00010132,2]
[334724407,1723509031600,-5403.00141948,0.00010159,2]
[334724408,1723509031610,-526.71491504,0.00010159,2]
[334724409,1723509031620,-161.82628605,0.00010253,2]
[334724411,1723509031629,-860.49,0.00010253,2]
[334724413,1723509031638,-150.99,0.00010326,2]
[334724414,1723509031648,-1211.18,0.00010326,2]
[334724415,1723509031657,-161.82628605,0.00010374,2]
[334724416,1723509031666,-189.56,0.00010458,2]
[334724417,1723509031676,-161.82628605,0.00010496,2]
[334724419,1723509031685,-224.45,0.00010496,2]
[334724421,1723509031697,-161.82628605,0.00010617,2]
[334724423,1723509031707,-200.0,0.00010694,2]
[334724425,1723509031717,-150.99,0.00010694,2]
[334724427,1723509031726,-1186.405,0.000107,2]
[334724429,1723509031736,-2635.2288,0.000107,2]
[334724431,1723509031745,-161.82628605,0.00010738,2]
[334724432,1723509031754,-157.86,0.00010806,2]
[334724433,1723509031764,-420.0,0.00010857,2]
[334724434,1723509031773,-161.82628605,0.00010859,2]
[334724435,1723509031783,-499.99,0.00010913,2]
[334724436,1723509031792,-255.0,0.00010914,2]
[334724437,1723509031801,-3145.53,0.00010947,2]
[334724438,1723509031810,-1153.2926,0.00010953,2]
[334724439,1723509031819,-1352.4,0.00010959,2]
[334724440,1723509031829,-2000.0,0.00010959,2]
[334724441,1723509031838,-2837.95,0.00010959,2]
[334724442,1723509031849,-150.0,0.00010959,2]
[334724443,1723509031862,-250.0,0.00010959,2]
[334724444,1723509031871,-250.0,0.00011,2]
[334724445,1723509031880,-59216.0,0.00011,2]
[334724446,1723509031890,-168.72,0.00011,2]
[334724447,1723509031899,-164.2098542,0.00011053,2]
[334724448,1723509031908,-155.0,0.00011053,2]
[334724449,1723509031918,-2836.06303036,0.00011053,2]
[334724450,1723509031927,-15483.10746637,0.00011053,2]
[334724451,1723509031936,-10534.15307555,0.00011053,2]
[334724452,1723509031945,-3121.02924387,0.00011053,2]
[334724453,1723509031954,-2341.8386325,0.00011053,2]
[334724454,1723509031964,-251.36777827,0.00011053,2]
[334724455,1723509031974,-186.61373916,0.00011053,2]
[334724456,1723509031983,-9903.70253644,0.00011053,2]
[334724457,1723509031993,-595.07789582,0.00011053,2]
[334724458,1723509032002,-653.64489815,0.00011053,2]
[334724459,1723509032012,-1139.1217656,0.00011053,2]
[334724460,1723509032022,-1739.57017204,0.00011053,2]
[334724461,1723509032031,-396.80614557,0.00011053,2]
[334724462,1723509032041,-309.29668231,0.00011053,2]
[334724463,1723509032054,-367.87511774,0.00011053,2]
[334724464,1723509032065,-256.33432561,0.00011053,2]
[334724465,1723509032075,-1036.3384265,0.00011053,2]
[334724466,1723509032084,-419.10841212,0.00011053,2]
[334724467,1723509032095,-164.37927092,0.00011053,2]
[334724468,1723509032109,-3875.44196721,0.00011053,2]
[334724469,1723509032118,-159.58732349,0.00011053,2]
[334724470,1723509032128,-155.0,0.00011053,2]
[334724471,1723509032139,-330.1975188,0.00011053,2]
[334724472,1723509032148,-155.0,0.00011053,2]
[334724473,1723509032158,-1275.64502519,0.00011053,2]
[334724474,1723509032168,-155.0,0.00011053,2]
[334724475,1723509032178,-155.0,0.00011053,2]
[334724476,1723509032187,-2111.39291129,0.00011053,2]
[334724477,1723509032197,-270.58164358,0.00011053,2]
[334724478,1723509032206,-271.68,0.00011079,2]
[334724479,1723509032216,-800.0,0.00011081,2]
[334724480,1723509032225,-159.17,0.0001109,2]
[334724481,1723509032234,-167.58,0.0001109,2]
[334724482,1723509032244,-520.13340827,0.00011105,2]
[334724483,1723509032253,-401.38425567,0.00011105,2]
[334724484,1723509032263,-485.18668102,0.00011105,2]
[334724485,1723509032272,-649.86351287,0.00011105,2]
[334724486,1723509032282,-297.48958849,0.00011105,2]
[334724487,1723509032291,-155.0,0.00011105,2]
[334724488,1723509032300,-211.06190242,0.00011105,2]
[334724489,1723509032309,-155.0,0.00011105,2]
[334724490,1723509032318,-328.2488375,0.00011105,2]
[334724491,1723509032327,-167.55459275,0.00011105,2]
[334724492,1723509032337,-255.19609183,0.00011105,2]
[334724493,1723509032346,-359.41537774,0.00011105,2]
[334724494,1723509032363,-197.1386879,0.00011105,2]
[334724495,1723509032372,-211.73961936,0.00011105,2]
[334724496,1723509032386,-155.0,0.00011105,2]
[334724497,1723509032396,-347.69615481,0.00011105,2]
[334724498,1723509032405,-236.34424982,0.00011105,2]
[334724499,1723509032414,-454.57521967,0.00011105,2]
[334724500,1723509032423,-159.17,0.00011145,2]
[334724501,1723509032433,-31733.66358944,0.00011185,2]
[334724502,1723509032442,-2496.49978,0.00011185,2]
[334724503,1723509032451,-168.0,0.00011205,2]
[334724504,1723509032460,-3000.0,0.000113,2]
[334724505,1723509032470,-25322.221128,0.00011324,2]
[334724506,1723509032480,-420.3320603,0.00011345,2]
[334724507,1723509032489,-388.08345911,0.00011454,2]
[334724508,1723509032499,-350.30992315,0.00011525,2]
[334724509,1723509032509,-3000.0,0.0001161,2]
[334724510,1723509032518,-7500.0,0.000117,2]
[334724511,1723509032527,-200.0,0.00011773,2]
[334724512,1723509032538,-152.14,0.0001179,2]
[334724513,1723509032547,-152.14,0.0001179,2]
[334724514,1723509032557,-152.14,0.0001179,2]
[334724515,1723509032567,-152.14,0.0001179,2]
[334724516,1723509032576,-152.14,0.0001179,2]
[334724517,1723509032586,-38766.02916123,0.000118,2]
[334724518,1723509032599,-900.0,0.000118,2]
[334724519,1723509032613,-465.65120639,0.000118,2]
[334724520,1723509032644,-10371.38293521,0.000118,2]
[334724521,1723509032656,-397.7418011,0.000118,2]
[334724522,1723509032667,-1029.07753147,0.000118,2]
[334724523,1723509032776,-309.24154603,0.000118,2]
[334724541,1723509037575,-323.64599603,0.00011797,2]
[334724542,1723509037586,-2615.69853828,0.000118,2]
[334724543,1723509037691,-17959.55396719,0.000118,2]
[334724644,1723509039728,-299.86,0.000118,2]
[334724645,1723509039787,-113092.19215196,0.000118,2]
[334724909,1723509046051,-17446.85176574,0.000118,2]
[334724914,1723509570752,150.0,0.00026445,120]
[334724915,1723509635408,7556.6504,9.647e-05,2]
[334724918,1723509854358,203.82,8.582e-05,2]
[334724944,1723510231658,-648.12882621,0.00010302,2]
[334724945,1723510231671,-1603.49340754,0.00010302,2]
[334724946,1723510231716,-1680.21209364,0.00010302,2]
[334724947,1723510231778,-3900.0,0.00010302,2]
[334724948,1723510231836,-1283.39985363,0.00010302,2]
[334724949,1723510231847,-300.0,0.00010309,2]
[334724950,1723510231857,-1329.1623,0.0001031,2]
[334724951,1723510231867,-1019.46290211,0.00010402,2]
[334724952,1723510231876,-948.7757435,0.00010402,2]
[334724953,1723510231885,-155.21020262,0.00010402,2]
[334724954,1723510231895,-597.0,0.0001051,2]
[334724956,1723510231904,-157.88,0.00010583,2]
[334724957,1723510231913,-480.0,0.00010621,2]
[334724958,1723510231923,-1170.58,0.00010658,2]
[334724959,1723510231932,-203.82,0.00010846,2]
[334724960,1723510231942,-250.0,0.00010959,2]
[334724961,1723510231951,-800.72,0.00010959,2]
[334724962,1723510231961,-150.0,0.00011,2]
[334724963,1723510231970,-173.84,0.00011048,2]
[334724964,1723510231980,-520.0,0.000111,2]
[334724965,1723510231990,-150.0,0.00011104,2]
[334724966,1723510231999,-275.36463455,0.00011105,2]
[334724967,1723510237794,-3597.56620416,0.00011105,2]
[334724968,1723510237851,-837.50047848,0.00011105,2]
[334724969,1723510237863,-332.98204402,0.00011105,2]
[334724970,1723510237908,-4227.76008054,0.00011105,2]
[334724971,1723510237918,-1180.44133432,0.00011105,2]
[334724972,1723510237929,-709.08266212,0.00011105,2]
[334724973,1723510237966,-496.66070325,0.00011105,2]
[334724974,1723510237975,-409.06207146,0.00011105,2]
[334724975,1723510238080,-90.92792854,0.00011105,2]
[334724976,1723510238090,-3082.18064459,0.00011105,2]
[334724977,1723510238100,-3937.46359227,0.00011105,2]
[334724978,1723510238110,-3404.38999599,0.00011105,2]
[334724979,1723510238119,-719.99287251,0.00011105,2]
[334724980,1723510238129,-2841.12816254,0.00011105,2]
[334724981,1723510238138,-2502.58566001,0.00011105,2]
[334724982,1723510238147,-1298.23330788,0.00011105,2]
[334724983,1723510238157,-310.0,0.00011105,2]
[334724984,1723510238167,-2145.94258433,0.00011105,2]
[334724985,1723510238176,-3032.35761195,0.00011105,2]
[334724986,1723510238185,-723.413963,0.0001116,2]
[334724988,1723510238195,-150.99,0.00011175,2]
[334724990,1723510238204,-1074.67923523,0.00011186,2]
[334724992,1723510238214,-835.34,0.000112,2]
[334724994,1723510238223,-493.59808335,0.00011206,2]
[334724996,1723510238233,-835.34,0.000113,2]
[334724998,1723510238243,-155.0,0.00011322,2]
[334725000,1723510238252,-164.40260801,0.00011322,2]
[334725002,1723510238262,-962.44601255,0.00011322,2]
[334725004,1723510238271,-440.08291615,0.00011322,2]
[334725006,1723510238281,-267.36245891,0.00011324,2]
[334725008,1723510238291,-600.74422133,0.00011324,2]
[334725010,1723510238300,-921.56338905,0.00011324,2]
[334725012,1723510238310,-420.0,0.0001134,2]
[334725014,1723510238323,-540.88,0.0001134,2]
[334725016,1723510238332,-155.08623708,0.00011384,2]
[334725018,1723510238342,-205.93925426,0.00011384,2]
[334725020,1723510238351,-205.93925426,0.00011525,2]
[334725021,1723510238360,-155.0,0.00011525,2]
[334725023,1723510238370,-388.08345911,0.00011693,2]
[334725025,1723510238379,-231.06459181,0.00011699,2]
[334725028,1723510238389,-2581.416,0.00011699,2]
[334725030,1723510238398,-835.34,0.000117,2]
[334725032,1723510238407,-1000.0,0.000117,2]
[334725034,1723510238417,-26753.42150789,0.000117,2]
[334725035,1723510238427,-475.74380018,0.000117,2]
[334725037,1723510238440,-4863.2503,0.000117,2]
[334725039,1723510238449,-213.82958142,0.000117,2]
[334725041,1723510238459,-420.3320603,0.00011766,2]
[334725043,1723510238470,-152.14,0.0001179,2]
[334725045,1723510238479,-152.14,0.0001179,2]
[334725047,1723510238488,-287.6853298,0.00011797,2]
[334725049,1723510238498,-507367.43929062,0.000118,2]
[334725051,1723510238508,-161072.2431667,0.000118,2]
[334725053,1723510238517,-3000.0,0.000118,2]
[334725055,1723510238527,-202.906155,0.0001185,2]
[334725057,1723510238536,-365.80180037,0.0001185,2]
[334725059,1723510238545,-1041.95657501,0.0001185,2]
[334725061,1723510238555,-400.0,0.000119,4]
[334725063,1723510238566,-480.0,0.00011949,2]
[334725065,1723510238577,-380.32741541,0.00011959,2]
[334725067,1723510238593,-476.94280787,0.00011959,2]
[334725069,1723510238603,-432.47832469,0.00011959,2]
[334725072,1723510238617,-432.47832469,0.00011959,2]
[334725074,1723510238626,-243.25458866,0.00011959,2]
[334725076,1723510238635,-600.0,0.00012,2]
[334725078,1723510238644,-255.0,0.00012148,2]
[334725079,1723510238654,-271.68,0.0001231,2]
[334725081,1723510238663,-5000.0,0.0001236,2]
[334725083,1723510238673,-173.84,0.0001243,2]
[334725086,1723510238685,-163.41368664,0.00012454,2]
[334725088,1723510238694,-172.0,0.00012474,2]
[334725090,1723510238703,-520.0,0.00012487,2]
[334725091,1723510238712,-152.14,0.00012529,2]
[334725093,1723510238722,-152.14,0.00012529,2]
[334725095,1723510238731,-152.14,0.00012529,2]
[334725097,1723510238741,-152.14,0.00012529,2]
[334725099,1723510238751,-152.14,0.00012529,2]
[334725101,1723510238760,-151.0,0.00012539,2]
[334725103,1723510238770,-697724.07171808,0.0001254,2]
[334725105,1723510238779,-300.0,0.00012554,2]
[334725107,1723510238789,-159.45,0.00012554,2]
[334725109,1723510238798,-156.08,0.00012554,2]
[334725111,1723510238808,-151.56,0.00012554,2]
[334725113,1723510238817,-300.0,0.00012554,2]
[334725115,1723510238827,-300.0,0.00012554,2]
[334725117,1723510238836,-150.0,0.00012554,2]
[334725119,1723510238846,-150.0,0.00012554,2]
[334725121,1723510238855,-356.52,0.00012554,2]
[334725123,1723510238864,-150.0,0.00012554,2]
[334725125,1723510238873,-150.0,0.00012554,2]
[334725127,1723510238883,-356.52,0.00012554,2]
[334725129,1723510238892,-150.0,0.00012554,2]
[334725131,1723510238901,-150.0,0.00012554,2]
[334725133,1723510238910,-150.0,0.00012554,2]
[334725135,1723510238919,-150.0,0.00012554,2]
[334725137,1723510238928,-150.0,0.00012554,2]
[334725139,1723510238938,-150.0,0.00012554,2]
[334725141,1723510238947,-356.52,0.00012554,2]
[334725143,1723510238957,-530.97,0.00012554,2]
[334725145,1723510238966,-356.52,0.00012554,2]
[334725147,1723510238975,-150.0,0.00012554,2]
[334725149,1723510238985,-150.0,0.00012554,2]
[334725151,1723510238994,-356.52,0.00012554,2]
[334725153,1723510239003,-530.97,0.00012554,2]
[334725155,1723510239012,-300.0,0.00012554,2]
[334725156,1723510239022,-150.0,0.00012554,2]
[334725158,1723510239031,-530.97,0.00012554,2]
[334725160,1723510239041,-530.97,0.00012554,2]
[334725162,1723510239051,-530.97,0.00012554,2]
[334725164,1723510239061,-609.03,0.00012554,2]
[334725165,1723510239079,-530.97,0.00012554,2]
[334725167,1723510239089,-426.37,0.00012554,2]
[334725169,1723510239098,-426.37,0.00012554,2]
[334725171,1723510239108,-426.37,0.00012554,2]
[334725173,1723510239117,-530.97,0.00012554,2]
[334725175,1723510239126,-530.97,0.00012554,2]
[334725177,1723510239135,-426.37,0.00012554,2]
[334725179,1723510239145,-257.91,0.00012554,2]
[334725181,1723510239154,-530.97,0.00012554,2]
[334725183,1723510239164,-426.37,0.00012554,2]
[334725185,1723510239174,-150.0,0.00012554,2]
[334725187,1723510239184,-530.97,0.00012554,2]
[334725189,1723510239193,-426.37,0.00012554,2]
[334725191,1723510239203,-150.0,0.00012554,2]
[334725193,1723510239213,-428.19,0.00012554,2]
[334725195,1723510239223,-475.74380014,0.00012607,2]
[334725197,1723510239232,-892.72350459,0.00012665,2]
[334725198,1723510239242,-298.64662098,0.00012666,2]
[334725200,1723510239252,-1500.0,0.00012681,2]
[334725202,1723510239261,-522.26105292,0.00012826,2]
[334725204,1723510239271,-547.83299741,0.00012883,2]
[334725206,1723510239281,-157.87,0.00012893,2]
[334725208,1723510239290,-900.0,0.000129,4]
[334725210,1723510239299,-1634.40285914,0.00012928,2]
[334725212,1723510239309,-794.0,0.00012937,2]
[334725214,1723510239327,-213.82958136,0.00012989,2]
[334725216,1723510239337,-218.91005949,0.00012995,2]
[334725218,1723510239346,-155.0,0.00013,2]
[334725220,1723510239356,-628.64037232,0.00013,2]
[334725222,1723510239365,-155.0,0.00013,2]
[334725224,1723510239374,-313.72504289,0.00013,2]
[334725226,1723510239383,-1542.0,0.00013051,2]
[334725228,1723510239392,-556.0,0.00013051,2]
[334725230,1723510239402,-150.0,0.00013051,2]
[334725232,1723510239411,-165.50846167,0.00013066,2]
[334725234,1723510239421,-155.44272361,0.00013066,2]
[334725236,1723510239437,-687.02501385,0.00013066,2]
[334725238,1723510239447,-26753.42150781,0.00013098,2]
[334725240,1723510239457,-203.82,0.0001311,2]
[334725242,1723510239466,-150.317,0.00013121,2]
[334725244,1723510239477,-151.491,0.00013121,2]
[334725246,1723510239486,-203.41395605,0.00013125,2]
[334725248,1723510239495,-203.41395605,0.00013125,2]
[334725250,1723510239504,-364.18791554,0.00013133,2]
[334725252,1723510239516,-265.43626793,0.00013133,2]
[334725254,1723510239526,-155.0,0.00013133,2]
[334725256,1723510239535,-155.0,0.00013133,2]
[334725258,1723510239544,-528.91996067,0.00013133,2]
[334725260,1723510239554,-155.0,0.00013165,2]
[334725262,1723510239563,-155.0,0.00013165,2]
[334725265,1723510239577,-211.0133722,0.00013199,2]
[334725268,1723510239586,-357.45302385,0.00013199,2]
[334725270,1723510239595,-480.0,0.00013277,2]
[334725272,1723510239604,-151.0,0.00013281,2]
[334725274,1723510239613,-152.14,0.00013287,2]
[334725276,1723510239623,-15483.10746637,0.00013297,2]
[334725278,1723510239632,-15483.10746637,0.00013297,2]
[334725280,1723510239641,-35727.72779464,0.00013297,2]
[334725282,1723510239651,-3121.02924387,0.0001331,2]
[334725284,1723510239660,-3875.44196721,0.0001331,2]
[334725286,1723510239670,-426.37,0.00013376,2]
[334725288,1723510239679,-426.37,0.00013376,2]
[334725290,1723510239688,-530.97,0.00013376,2]
[334725292,1723510239697,-852.64,0.00013376,2]
[334725294,1723510239706,-530.97,0.00013376,2]
[334725296,1723510239716,-426.37,0.00013376,2]
[334725298,1723510239726,-530.97,0.00013376,2]
[334725300,1723510239737,-191.56,0.00013376,2]
[334725302,1723510239747,-514.09,0.00013376,2]
[334725304,1723510239756,-426.37,0.00013376,2]
[334725306,1723510239766,-206.17,0.00013376,2]
[334725308,1723510239775,-2836.06303036,0.00013378,2]
[334725310,1723510239783,-151.0,0.00013398,2]
[334725311,1723510239792,-151.0,0.00013398,2]
[334725313,1723510239801,-151.0,0.00013398,2]
[334725316,1723510239813,-151.0,0.00013398,2]
[334725318,1723510239823,-846.65397,0.00013398,2]
[334725320,1723510239833,-846.65397,0.00013398,2]
[334725322,1723510239842,-25322.221128,0.00013398,2]
[334725324,1723510239852,-5403.79429818,0.00013398,2]
[334725326,1723510239861,-25322.221128,0.00013398,2]
[334725328,1723510239871,-155.0,0.000134,2]
[334725330,1723510239881,-2341.8386325,0.00013479,2]
[334725331,1723510239890,-10534.15307555,0.00013479,2]
[334725333,1723510239899,-1275.64502519,0.00013483,2]
[334725335,1723510239908,-9903.70253644,0.00013483,2]
[334725337,1723510239918,-151.0,0.00013483,2]
[334725339,1723510239927,-216.643212,0.00013483,2]
[334725341,1723510239937,-151.0,0.00013483,2]
[334725343,1723510239946,-216.643212,0.00013483,2]
[334725345,1723510239956,-151.0,0.00013483,2]
[334725347,1723510239967,-1739.57017204,0.00013499,2]
[334725349,1723510239977,-595.07789582,0.00013499,2]
[334725351,1723510239987,-653.47870425,0.0001351,2]
[334725353,1723510239996,-151.0,0.0001351,2]
[334725355,1723510240006,-151.0,0.0001351,2]
[334725357,1723510240015,-151.0,0.0001351,2]
[334725359,1723510240025,-475.74380014,0.00013513,2]
[334725361,1723510240034,-271.68,0.00013541,2]
[334725363,1723510240044,-401.38425567,0.00013561,2]